fUSD/lending_fUSD_20250612
["ID","MTS","AMOUNT","RATE_DAILY","PERIOD"]
[365493209,1749702666458,-151.0,0.00019835,2]
[365493210,1749702666468,-206.44311,0.00019835,2]
[365493211,1749702666478,-786.16,0.00019835,2]
[365493212,1749702666488,-490.0,0.00019835,2]
[365493213,1749702666498,-657.56,0.00019835,2]
[365493214,1749702666508,-151.0,0.00019835,2]
[365493215,1749702666518,-999.76,0.00019835,2]
[365493216,1749702666531,-1409.61,0.00019835,2]
[365493217,1749702666541,-660.05,0.00019835,2]
[365493218,1749702666551,-490.0,0.00019835,2]
[365493219,1749702666561,-151.0,0.00019835,2]
[365493220,1749702666571,-1094.89,0.00019835,2]
[365493221,1749702666582,-151.0,0.00019835,2]
[365493222,1749702666594,-490.0,0.00019835,2]
[365493223,1749702666604,-151.0,0.00019835,2]
[365493224,1749702666620,-490.0,0.00019835,2]
[365493225,1749702666631,-5190.44,0.00019835,2]
[365493226,1749702666641,-1134.21,0.00019835,2]
[365493227,1749702666651,-890.27,0.00019835,2]
[365493228,1749702666662,-151.0,0.00019835,2]
[365493229,1749702666672,-1204.681071,0.00019835,2]
[365493230,1749702666683,-1323.58,0.00019835,2]
[365493231,1749702666694,-383.17606102,0.00019835,2]
[365493232,1749702666704,-1025.07,0.00019835,2]
[365493233,1749702666714,-3147.0,0.00019835,2]
[365493234,1749702666725,-1204.681071,0.00019835,2]
[365493235,1749702666735,-1004.8,0.00019835,2]
[365493236,1749702666746,-753.14,0.00019835,2]
[365493237,1749702666756,-570.78,0.00019835,2]
[365493238,1749702666767,-1529.81,0.00019835,2]
[365493239,1749702666777,-959.4,0.00019835,2]
[365493240,1749702666787,-3640.85,0.00019835,2]
[365493241,1749702666797,-800.14,0.00019835,2]
[365493242,1749702666807,-490.0,0.00019835,2]
[365493243,1749702666817,-1382.1,0.00019835,2]
[365493244,1749702666827,-710.62,0.00019835,2]
[365493245,1749702666839,-1065.77,0.00019835,2]
[365493246,1749702666848,-4114.47,0.00019835,2]
[365493247,1749702666858,-175.6240069,0.00019835,2]
[365493248,1749702666869,-1783.13,0.00019835,2]
[365493249,1749702666879,-2514.95,0.00019835,2]
[365493250,1749702666889,-670.79,0.00019835,2]
[365493251,1749702666899,-490.0,0.00019835,2]
[365493252,1749702666910,-490.0,0.00019835,2]
[365493253,1749702666921,-977.3,0.00019835,2]
[365493254,1749702666931,-7613.123943,0.00019835,2]
[365493255,1749702666941,-1959.36,0.00019835,2]
[365493256,1749702666952,-966.22,0.00019835,2]
[365493257,1749702666963,-2861.3,0.00019835,2]
[365493258,1749702666972,-637.9,0.00019835,2]
[365493259,1749702666982,-7613.123943,0.00019835,2]
[365493260,1749702666991,-1662.84,0.00019835,2]
[365493261,1749702667002,-11972.34,0.00019835,2]
[365493262,1749702667012,-901.48,0.00019835,2]
[365493263,1749702667022,-151.0,0.00019835,2]
[365493264,1749702667032,-151.0,0.00019835,2]
[365493265,1749702667042,-490.0,0.00019835,2]
[365493266,1749702667053,-611.9,0.00019835,2]
[365493267,1749702667070,-4335.46,0.00019835,2]
[365493268,1749702667081,-811.88,0.00019835,2]
[365493269,1749702667093,-151.0,0.00019835,2]
[365493270,1749702667104,-151.0,0.00019835,2]
[365493271,1749702667115,-991.82,0.00019835,2]
[365493272,1749702667125,-631.05,0.00019835,2]
[365493273,1749702667135,-151.0,0.00019835,2]
[365493274,1749702667146,-175.711486,0.00019835,2]
[365493275,1749702667156,-490.0,0.00019835,2]
[365493276,1749702667166,-1891.03,0.00019835,2]
[365493277,1749702667176,-1098.68,0.00019835,2]
[365493278,1749702667185,-155.971175,0.00019835,2]
[365493279,1749702667195,-490.0,0.00019835,2]
[365493280,1749702667206,-175.711486,0.00019835,2]
[365493281,1749702667216,-738.74,0.00019835,2]
[365493282,1749702667227,-1274.36,0.00019835,2]
[365493283,1749702667238,-2437.21,0.00019835,2]
[365493284,1749702667247,-1111.08,0.00019835,2]
[365493285,1749702667258,-990.16,0.00019835,2]
[365493286,1749702667268,-490.0,0.00019835,2]
[365493287,1749702667279,-2031.65,0.00019835,2]
[365493288,1749702667289,-854.455337,0.00019835,2]
[365493289,1749702667299,-1229.94,0.00019835,2]
[365493290,1749702667310,-480.0,0.00019835,2]
[365493291,1749702667320,-854.455337,0.00019835,2]
[365493292,1749702667329,-2105.63,0.00019835,2]
[365493293,1749702667340,-1064.64,0.00019835,2]
[365493294,1749702667350,-255.74709138,0.00019835,2]
[365493295,1749702667360,-490.0,0.00019835,2]
[365493296,1749702667370,-490.0,0.00019835,2]
[365493297,1749702667380,-1416.9,0.00019835,2]
[365493298,1749702667390,-490.0,0.00019835,2]
[365493299,1749702667399,-2296.11,0.00019835,2]
[365493300,1749702667410,-151.0,0.00019835,2]
[365493301,1749702667420,-1933.75,0.00019835,2]
[365493302,1749702667430,-616.37,0.00019835,2]
[365493303,1749702667440,-490.0,0.00019835,2]
[365493304,1749702667453,-764.28,0.00019835,2]
[365493305,1749702667463,-490.0,0.00019835,2]
[365493306,1749702667473,-490.0,0.00019835,2]
[365493307,1749702667484,-1143.34,0.00019835,2]
[365493308,1749702667494,-606.65,0.00019835,2]
[365493309,1749702667503,-1175.84,0.00019835,2]
[365493310,1749702667514,-1822.26,0.00019835,2]
[365493311,1749702667524,-512.88,0.00019835,2]
[365493312,1749702667535,-1033.7,0.00019835,2]
[365493313,1749702667546,-1122.526414,0.00019835,2]
[365493314,1749702667556,-571.23,0.00019835,2]
[365493315,1749702667565,-490.0,0.00019835,2]
[365493316,1749702667575,-4950.05,0.00019835,2]
[365493317,1749702667584,-151.0,0.00019835,2]
[365493318,1749702667595,-251.767538,0.00019835,2]
[365493319,1749702667605,-763.18,0.00019835,2]
[365493320,1749702667614,-1122.526414,0.00019835,2]
[365493321,1749702667625,-490.0,0.00019835,2]
[365493322,1749702667634,-861.74,0.00019835,2]
[365493323,1749702667644,-151.0,0.00019835,2]
[365493324,1749702667653,-490.0,0.00019835,2]
[365493325,1749702667663,-251.767538,0.00019835,2]
[365493326,1749702667673,-490.0,0.00019835,2]
[365493327,1749702667683,-151.0,0.00019835,2]
[365493328,1749702667693,-151.0,0.00019835,2]
[365493329,1749702667703,-151.0,0.00019835,2]
[365493330,1749702667712,-730.35,0.00019835,2]
[365493331,1749702667723,-490.0,0.00019835,2]
[365493332,1749702667732,-3105.41,0.00019835,2]
[365493333,1749702667742,-1252.17,0.00019835,2]
[365493334,1749702667752,-151.0,0.00019835,2]
[365493335,1749702667762,-1426.01,0.00019835,2]
[365493336,1749702667773,-963.38,0.00019835,2]
[365493337,1749702667783,-870.69,0.00019835,2]
[365493338,1749702667792,-410.0,0.00019835,2]
[365493339,1749702667803,-2092.74,0.00019835,2]
[365493340,1749702667812,-490.0,0.00019835,2]
[365493341,1749702667822,-151.0,0.00019835,2]
[365493342,1749702667832,-1881.0,0.00019835,2]
[365493343,1749702667844,-490.0,0.00019835,2]
[365493344,1749702667854,-3522.78,0.00019835,2]
[365493345,1749702667864,-626.63,0.00019835,2]
[365493346,1749702667873,-490.0,0.00019835,2]
[365493347,1749702667883,-151.0,0.00019835,2]
[365493348,1749702667894,-490.0,0.00019835,2]
[365493349,1749702667903,-948.36,0.00019835,2]
[365493350,1749702667914,-490.0,0.00019835,2]
[365493351,1749702667923,-643.53,0.00019835,2]
[365493352,1749702667933,-584.57,0.00019835,2]
[365493353,1749702667942,-700.07,0.00019835,2]
[365493354,1749702667952,-490.0,0.00019835,2]
[365493355,1749702667962,-490.0,0.00019835,2]
[365493356,1749702667972,-786.06,0.00019835,2]
[365493357,1749702667981,-613.83,0.00019835,2]
[365493358,1749702667991,-490.0,0.00019835,2]
[365493359,1749702668002,-490.0,0.00019835,2]
[365493360,1749702668012,-490.0,0.00019835,2]
[365493361,1749702668022,-635.02,0.00019835,2]
[365493362,1749702668032,-4387.22,0.00019835,2]
[365493363,1749702668042,-3330.47,0.00019835,2]
[365493364,1749702668052,-1465.52,0.00019835,2]
[365493365,1749702668062,-831.73,0.00019835,2]
[365493366,1749702668073,-490.0,0.00019835,2]
[365493367,1749702668083,-1758.95,0.00019835,2]
[365493368,1749702668094,-490.0,0.00019835,2]
[365493369,1749702668104,-1171.34,0.00019835,2]
[365493370,1749702668114,-760.84,0.00019835,2]
[365493371,1749702668124,-1940.94,0.00019835,2]
[365493372,1749702668134,-751.87,0.00019835,2]
[365493373,1749702668143,-1613.78,0.00019835,2]
[365493374,1749702668155,-490.0,0.00019835,2]
[365493375,1749702668166,-1505.9,0.00019835,2]
[365493376,1749702668176,-3167.56,0.00019835,2]
[365493377,1749702668186,-490.0,0.00019835,2]
[365493378,1749702668196,-2152.91,0.00019835,2]
[365493379,1749702668206,-2836.63,0.00019835,2]
[365493380,1749702668216,-635.65,0.00019835,2]
[365493381,1749702668226,-839.12,0.00019835,2]
[365493382,1749702668236,-888.98,0.00019835,2]
[365493383,1749702668246,-3709.77,0.00019835,2]
[365493384,1749702668256,-490.0,0.00019835,2]
[365493385,1749702668267,-13495.99,0.00019835,2]
[365493386,1749702668277,-506.78556944,0.00019835,2]
[365493387,1749702668288,-151.0,0.00019835,2]
[365493388,1749702668299,-2242.88,0.00019835,2]
[365493389,1749702668309,-982.75,0.00019835,2]
[365493390,1749702668320,-490.0,0.00019835,2]
[365493391,1749702668330,-514.98,0.00019835,2]
[365493392,1749702668341,-3250.61,0.00019835,2]
[365493393,1749702668351,-1049.01,0.00019835,2]
[365493394,1749702668362,-2155.95,0.00019835,2]
[365493395,1749702668373,-1796.64,0.00019835,2]
[365493396,1749702668384,-151.0,0.00019835,2]
[365493397,1749702668395,-2136.54,0.00019835,2]
[365493398,1749702668405,-505.74,0.00019835,2]
[365493399,1749702668415,-490.0,0.00019835,2]
[365493400,1749702668425,-1496.3,0.00019835,2]
[365493401,1749702668436,-584.87,0.00019835,2]
[365493402,1749702668447,-1625.82,0.00019835,2]
[365493403,1749702668461,-783.21,0.00019835,2]
[365493404,1749702668472,-4240.3,0.00019835,2]
[365493405,1749702668482,-3500.97,0.00019835,2]
[365493406,1749702668492,-1371.58,0.00019835,2]
[365493407,1749702668503,-647.48,0.00019835,2]
[365493408,1749702668513,-490.0,0.00019835,2]
[365493409,1749702668524,-490.0,0.00019835,2]
[365493410,1749702668535,-755.25,0.00019835,2]
[365493411,1749702668546,-652.5,0.00019835,2]
[365493412,1749702668557,-1323.91,0.00019835,2]
[365493413,1749702668568,-9214.32,0.00019835,2]
[365493414,1749702668579,-490.0,0.00019835,2]
[365493415,1749702668590,-614.91,0.00019835,2]
[365493416,1749702668601,-620.73808768,0.00019835,2]
[365493417,1749702669040,-135.79191232,0.00019835,2]
[365493418,1749702669051,-581.79,0.00019835,2]
[365493419,1749702669062,-439.25461962,0.00019835,2]
[365493420,1749702669072,-1780.52,0.00019835,2]
[365493421,1749702669083,-573.22,0.00019835,2]
[365493422,1749702669094,-496.43329217,0.00019835,2]
[365493423,1749702669105,-753.27,0.00019835,2]
[365493424,1749702669115,-903.71,0.00019835,2]
[365493425,1749702669127,-2066.14,0.00019835,2]
[365493426,1749702669138,-598.48,0.00019835,2]
[365493427,1749702669148,-556.08,0.00019835,2]
[365493428,1749702669159,-1029.46,0.00019835,2]
[365493429,1749702669169,-346.421056,0.00019835,2]
[365493430,1749702669179,-197.75974699,0.00019835,2]
[365493431,1749702669189,-540.9,0.00019835,2]
[365493432,1749702669199,-151.0,0.00019835,2]
[365493433,1749702669210,-346.421056,0.00019835,2]
[365493434,1749702669221,-490.0,0.00019835,2]
[365493435,1749702669232,-1103.15,0.00019835,2]
[365493436,1749702669242,-2785.99,0.00019835,2]
[365493437,1749702669253,-802.39,0.00019835,2]
[365493438,1749702669263,-490.0,0.00019835,2]
[365493439,1749702669274,-1209.15,0.00019835,2]
[365493440,1749702669285,-151.0,0.00019835,2]
[365493441,1749702669295,-522.19,0.00019835,2]
[365493442,1749702669306,-490.0,0.00019835,2]
[365493443,1749702669316,-1160.67,0.00019835,2]
[365493444,1749702669327,-490.0,0.00019835,2]
[365493445,1749702669338,-843.72,0.00019835,2]
[365493446,1749702669349,-2238.74,0.00019835,2]
[365493447,1749702669359,-5400.12,0.00019835,2]
[365493448,1749702669370,-843.03,0.00019835,2]
[365493449,1749702669380,-151.0,0.00019835,2]
[365493450,1749702669390,-503.3133828,0.00019843,2]
[365493451,1749702669401,-1000.0,0.00019862,2]
[365493452,1749702669412,-500.0,0.00019873,2]
[365493453,1749702669422,-963.9,0.00019882,2]
[365493454,1749702669433,-171.39135243,0.00019886,2]
[365493455,1749702669444,-503.3133828,0.00019886,2]
[365493456,1749702669456,-1101.55414014,0.00019896,5]
[365493457,1749702669467,-500.0,0.00019896,2]
[365493458,1749702669477,-574.859282,0.00019897,2]
[365493459,1749702669488,-574.859282,0.00019897,2]
[365493460,1749702669498,-151.0,0.00019897,2]
[365493461,1749702669508,-155.59806,0.00019897,2]
[365493462,1749702669518,-151.0,0.00019897,2]
[365493463,1749702669529,-151.0,0.00019897,2]
[365493464,1749702669539,-151.288751,0.00019897,2]
[365493465,1749702669549,-188.690305,0.00019897,2]
[365493466,1749702669560,-879.533595,0.00019897,2]
[365493467,1749702669570,-188.690305,0.00019897,2]
[365493468,1749702669580,-151.0,0.00019897,2]
[365493469,1749702669590,-151.0,0.00019897,2]
[365493470,1749702669600,-160.753343,0.00019897,2]
[365493471,1749702669610,-151.0,0.000199,2]
[365493472,1749702669621,-171.39135243,0.000199,2]
[365493473,1749702669631,-2194.04,0.000199,2]
[365493474,1749702669640,-151.0,0.000199,2]
[365493475,1749702669650,-164.0,0.000199,4]
[365493476,1749702669660,-163.88,0.000199,4]
[365493477,1749702669671,-657.801493,0.000199,2]
[365493478,1749702669681,-1209.953713,0.000199,2]
[365493479,1749702669691,-1209.953713,0.000199,2]
[365493480,1749702669700,-249.561439,0.000199,2]
[365493481,1749702669710,-249.561439,0.000199,2]
[365493482,1749702669720,-211.63248,0.000199,2]
[365493483,1749702669730,-151.0,0.000199,2]
[365493484,1749702669740,-151.0,0.000199,2]
[365493485,1749702669750,-151.0,0.000199,2]
[365493486,1749702669760,-307.97693,0.000199,2]
[365493487,1749702669771,-307.97693,0.000199,2]
[365493488,1749702669782,-226.483972,0.000199,2]
[365493489,1749702669792,-226.483972,0.000199,2]
[365493490,1749702669803,-5800.0,0.000199,2]
[365493491,1749702669813,-172.82372323,0.000199,2]
[365493492,1749702669824,-930.10614962,0.000199,2]
[365493493,1749702669836,-1727.15114208,0.000199,2]
[365493494,1749702669848,-16885.42682875,0.000199,2]
[365493495,1749702669858,-248.3229534,0.000199,2]
[365493496,1749702669869,-150.0,0.00019972,2]
[365493497,1749702669879,-150.0,0.00019972,2]
[365493498,1749702669889,-150.0,0.00019972,2]
[365493499,1749702669900,-150.0,0.00019972,2]
[365493500,1749702669910,-500.0,0.00019972,2]
[365493501,1749702669920,-500.0,0.00019972,2]
[365493502,1749702669930,-249.73029672,0.00019972,2]
[365493503,1749702669940,-500.0,0.00019972,2]
[365493504,1749702669950,-761.0,0.00019972,2]
[365493505,1749702669960,-266.63936158,0.00019972,2]
[365493506,1749702669970,-500.0,0.00019972,2]
[365493507,1749702669980,-150.0,0.00019973,4]
[365493508,1749702669990,-150.0,0.00019973,4]
[365493509,1749702669999,-150.80212763,0.00019973,4]
[365493510,1749702670009,-150.0,0.00019973,4]
[365493511,1749702670019,-165.22126445,0.00019973,4]
[365493512,1749702670030,-150.0,0.00019973,4]
[365493513,1749702670040,-150.0,0.00019973,4]
[365493514,1749702670050,-150.0,0.00019973,4]
[365493515,1749702670060,-150.0,0.00019973,4]
[365493516,1749702670070,-150.0,0.00019973,4]
[365493517,1749702670080,-150.0,0.00019973,4]
[365493518,1749702670091,-150.0,0.00019973,4]
[365493519,1749702670101,-150.0,0.00019973,4]
[365493520,1749702670113,-150.0,0.00019973,4]
[365493521,1749702670124,-500.0,0.00019973,2]
[365493522,1749702670135,-500.0,0.00019973,2]
[365493523,1749702670145,-500.0,0.00019973,2]
[365493524,1749702670156,-500.0,0.00019973,2]
[365493525,1749702670166,-500.0,0.00019973,2]
[365493526,1749702670177,-548.43890801,0.00019973,2]
[365493527,1749702670188,-500.0,0.00019973,2]
[365493528,1749702670199,-500.71419365,0.00019973,2]
[365493529,1749702670210,-501.64674611,0.00019973,2]
[365493530,1749702670220,-500.51195255,0.00019973,2]
[365493531,1749702670231,-500.60205472,0.00019973,2]
[365493532,1749702670243,-501.19427378,0.00019973,2]
[365493533,1749702670541,-501.27756881,0.00019973,2]
[365493534,1749702670553,-501.07440042,0.00019973,2]
[365493535,1749702670563,-212.6256527,0.00019973,2]
[365493536,1749702670573,-500.0,0.00019973,2]
[365493537,1749702670582,-500.77101159,0.00019973,2]
[365493538,1749702670593,-500.94790882,0.00019973,2]
[365493539,1749702670602,-500.0,0.00019973,2]
[365493540,1749702670612,-500.79553716,0.00019973,2]
[365493541,1749702670622,-272.66650298,0.00019973,2]
[365493542,1749702670633,-333.05355488,0.00019973,2]
[365493543,1749702670643,-500.38874203,0.00019973,2]
[365493544,1749702670653,-500.0,0.00019973,2]
[365493545,1749702670663,-501.07425863,0.00019973,2]
[365493546,1749702670673,-500.98105803,0.00019973,2]
[365493547,1749702670682,-500.0,0.0001998,2]
[365493548,1749702670691,-1029.84,0.0001998,2]
[365493549,1749702670701,-5357.6688909,0.00019981,2]
[365493550,1749702670711,-185552.4139947,0.00019981,2]
[365493551,1749702670721,-22862.7452961,0.00019981,2]
[365493552,1749702670730,-151.0,0.00019981,2]
[365493553,1749702670740,-286.265648,0.00019981,2]
[365493554,1749702670749,-151.0,0.00019981,2]
[365493555,1749702670759,-151.0,0.00019981,2]
[365493556,1749702670769,-151.0,0.00019981,2]
[365493557,1749702670778,-151.0,0.00019981,2]
[365493558,1749702670789,-151.0,0.00019981,2]
[365493559,1749702670798,-151.0,0.00019981,2]
[365493560,1749702670808,-666.0,0.00019985,2]
[365493561,1749702670818,-151.0,0.00019985,2]
[365493562,1749702670827,-500.0,0.00019985,2]
[365493563,1749702670836,-500.0,0.00019985,2]
[365493564,1749702670847,-500.0,0.00019985,2]
[365493565,1749702670857,-500.0,0.00019985,2]
[365493566,1749702670867,-500.0,0.00019985,2]
[365493567,1749702670877,-500.0,0.00019985,2]
[365493568,1749702670886,-1029.84,0.00019985,2]
[365493569,1749702670896,-1029.84,0.00019985,2]
[365493570,1749702670905,-1029.84,0.00019985,2]
[365493571,1749702670915,-151.0,0.00019985,2]
[365493572,1749702670924,-666.0,0.00019985,2]
[365493573,1749702670935,-300.0,0.00019985,2]
[365493574,1749702670944,-300.0,0.00019985,2]
[365493575,1749702670954,-151.0,0.00019986,2]
[365493576,1749702670963,-151.0,0.00019986,2]
[365493577,1749702670973,-205.242892,0.00019986,2]
[365493578,1749702670982,-151.0,0.00019986,2]
[365493579,1749702670991,-151.0,0.00019986,2]
[365493580,1749702671001,-151.0,0.00019986,2]
[365493581,1749702671010,-178.372966,0.00019986,2]
[365493582,1749702671019,-151.0,0.00019986,2]
[365493583,1749702671029,-151.0,0.00019986,2]
[365493584,1749702671039,-151.0,0.00019986,2]
[365493585,1749702671048,-196.546166,0.00019986,2]
[365493586,1749702671058,-151.0,0.00019986,2]
[365493587,1749702671068,-151.0,0.00019986,2]
[365493588,1749702671078,-151.0,0.00019986,2]
[365493589,1749702671088,-151.0,0.00019986,2]
[365493590,1749702671101,-151.0,0.00019986,2]
[365493591,1749702671111,-151.0,0.00019986,2]
[365493592,1749702671121,-151.0,0.00019986,2]
[365493593,1749702671131,-151.0,0.00019986,2]
[365493594,1749702671140,-151.0,0.00019986,2]
[365493595,1749702671150,-161.509702,0.00019986,2]
[365493596,1749702671159,-151.0,0.00019986,2]
[365493597,1749702671169,-185.173379,0.00019986,2]
[365493598,1749702671179,-185.173379,0.00019986,2]
[365493599,1749702671189,-151.0,0.00019986,2]
[365493600,1749702671199,-236.880337,0.00019986,2]
[365493601,1749702671209,-151.0,0.00019986,2]
[365493602,1749702671219,-177.638139,0.00019986,2]
[365493603,1749702671228,-177.638139,0.00019986,2]
[365493604,1749702671239,-225.222441,0.00019986,2]
[365493605,1749702671249,-225.222441,0.00019986,2]
[365493606,1749702671259,-225.222441,0.00019986,2]
[365493607,1749702671269,-225.222441,0.00019986,2]
[365493608,1749702671279,-151.0,0.00019986,2]
[365493609,1749702671289,-151.0,0.00019986,2]
[365493610,1749702671298,-151.0,0.00019986,2]
[365493611,1749702671309,-151.0,0.00019986,2]
[365493612,1749702671318,-151.0,0.00019986,2]
[365493613,1749702671328,-151.0,0.00019986,2]
[365493614,1749702671338,-151.0,0.00019986,2]
[365493615,1749702671350,-151.0,0.00019986,2]
[365493616,1749702671360,-151.0,0.00019986,2]
[365493617,1749702671371,-169.4264,0.00019986,2]
[365493618,1749702671381,-169.4264,0.00019986,2]
[365493619,1749702671391,-169.4264,0.00019986,2]
[365493620,1749702671402,-169.4264,0.00019986,2]
[365493621,1749702671411,-155.999692,0.00019986,2]
[365493622,1749702671421,-155.999692,0.00019986,2]
[365493623,1749702671431,-155.999692,0.00019986,2]
[365493624,1749702671442,-155.999692,0.00019986,2]
[365493625,1749702671455,-151.0,0.00019986,2]
[365493626,1749702671465,-287.984638,0.00019986,2]
[365493627,1749702671475,-151.0,0.00019986,2]
[365493628,1749702671484,-151.0,0.00019986,2]
[365493629,1749702671494,-151.0,0.00019986,2]
[365493630,1749702671504,-151.0,0.00019986,2]
[365493631,1749702671514,-151.0,0.00019986,2]
[365493632,1749702671525,-151.0,0.00019986,2]
[365493633,1749702671536,-484.939312,0.00019986,2]
[365493634,1749702671546,-484.939312,0.00019986,2]
[365493635,1749702671556,-484.939312,0.00019986,2]
[365493636,1749702671566,-484.939312,0.00019986,2]
[365493637,1749702671576,-151.0,0.00019986,2]
[365493638,1749702671585,-151.0,0.00019986,2]
[365493639,1749702671597,-151.0,0.00019986,2]
[365493640,1749702671606,-151.0,0.00019986,2]
[365493641,1749702671617,-152.559731,0.00019986,2]
[365493642,1749702671626,-574.859282,0.00019986,2]
[365493643,1749702671636,-574.859282,0.00019986,2]
[365493644,1749702671646,-574.859282,0.00019986,2]
[365493645,1749702671656,-574.859282,0.00019986,2]
[365493646,1749702671666,-647.090002,0.00019986,2]
[365493647,1749702671675,-647.090002,0.00019986,2]
[365493648,1749702671685,-151.0,0.00019986,2]
[365493649,1749702671696,-151.0,0.00019986,2]
[365493650,1749702671705,-151.0,0.00019986,2]
[365493651,1749702671715,-151.0,0.00019986,2]
[365493652,1749702671725,-151.0,0.00019986,2]
[365493653,1749702671736,-151.0,0.00019986,2]
[365493654,1749702671746,-206.489279,0.00019986,2]
[365493655,1749702671756,-206.489279,0.00019986,2]
[365493656,1749702671765,-206.489279,0.00019986,2]
[365493657,1749702671775,-206.489279,0.00019986,2]
[365493658,1749702671785,-151.0,0.00019986,2]
[365493659,1749702671795,-151.0,0.00019986,2]
[365493660,1749702671804,-167.568328,0.00019986,2]
[365493661,1749702671813,-167.568328,0.00019986,2]
[365493662,1749702671823,-151.0,0.00019986,2]
[365493663,1749702671832,-151.0,0.00019986,2]
[365493664,1749702671843,-167.568328,0.00019986,2]
[365493665,1749702671853,-167.568328,0.00019986,2]
[365493666,1749702671864,-151.0,0.00019986,2]
[365493667,1749702671874,-151.0,0.00019986,2]
[365493668,1749702671883,-152.166378,0.00019986,2]
[365493669,1749702671893,-151.0,0.00019986,2]
[365493670,1749702671903,-151.0,0.00019986,2]
[365493671,1749702671913,-151.0,0.00019986,2]
[365493672,1749702671923,-151.0,0.00019986,2]
[365493673,1749702671933,-288.97814,0.00019986,2]
[365493674,1749702671943,-151.0,0.00019986,2]
[365493675,1749702671953,-151.0,0.00019986,2]
[365493676,1749702671963,-151.0,0.00019986,2]
[365493677,1749702671972,-154.725004,0.00019986,2]
[365493678,1749702671982,-151.0,0.00019986,2]
[365493679,1749702671991,-151.0,0.00019986,2]
[365493680,1749702672001,-209.77023,0.00019986,2]
[365493681,1749702672011,-151.0,0.00019986,2]
[365493682,1749702672021,-151.0,0.00019986,2]
[365493683,1749702672031,-151.0,0.00019986,2]
[365493684,1749702672040,-151.0,0.00019986,2]
[365493685,1749702672050,-151.0,0.00019986,2]
[365493686,1749702672059,-223.668639,0.00019986,2]
[365493687,1749702672069,-657.801493,0.00019986,2]
[365493688,1749702672079,-1209.953713,0.00019986,2]
[365493689,1749702672089,-1209.953713,0.00019986,2]
[365493690,1749702672099,-249.561439,0.00019986,2]
[365493691,1749702672109,-249.561439,0.00019986,2]
[365493692,1749702672119,-151.0,0.00019986,2]
[365493693,1749702672129,-188.690305,0.00019986,2]
[365493694,1749702672138,-879.533595,0.00019986,2]
[365493695,1749702672148,-188.690305,0.00019986,2]
[365493696,1749702672158,-151.0,0.00019986,2]
[365493697,1749702672167,-151.0,0.00019986,2]
[365493698,1749702672176,-307.97693,0.00019986,2]
[365493699,1749702672186,-307.97693,0.00019986,2]
[365493700,1749702672196,-151.0,0.00019986,2]
[365493701,1749702672205,-151.0,0.00019986,2]
[365493702,1749702672216,-151.0,0.00019986,2]
[365493703,1749702672226,-217.046769,0.00019986,2]
[365493704,1749702672236,-151.0,0.00019986,2]
[365493705,1749702672246,-151.0,0.00019986,2]
[365493706,1749702672255,-397.437492,0.00019986,2]
[365493707,1749702672265,-226.483972,0.00019986,2]
[365493708,1749702672275,-397.437492,0.00019986,2]